bitfinex/quotes_SOLUSD_20240620
["timestamp","ask_amount","ask_price","bid_price","bid_amount"]
[1718864085724,0.34,136.96,136.91,15.6204]
[1718864085937,0.17,136.95,136.91,15.6204]
[1718864086135,0.17,136.94,136.88,22.8017]
[1718864086356,0.34,136.94,136.88,22.8017]
[1718864086647,0.17,136.93,136.88,22.8017]
[1718864086850,0.34,136.94,136.88,22.8017]
[1718864087044,0.17,136.94,136.88,22.8017]
[1718864087251,0.17,136.95,136.88,22.8017]
[1718864087549,0.17,136.94,136.88,22.8017]
[1718864087746,0.51,136.94,136.88,22.8017]
[1718864087981,0.17,136.93,136.88,22.8017]
[1718864088736,0.17,136.94,136.88,22.8017]
[1718864088928,0.17,136.97,136.88,22.8017]
[1718864089128,54.115,137.01,136.88,22.8017]
[1718864089343,7.3001,136.99,136.88,22.8017]
[1718864089547,7.3011,136.97,136.88,22.8017]
[1718864090426,0.34,136.96,136.88,22.8017]
[1718864091052,18.2441,137.04,136.88,22.8017]
[1718864091268,7.2988,137.01,136.89,20.0]
[1718864091757,7.2994,137.0,136.89,20.0]
[1718864091958,7.3001,136.99,136.89,20.0]
[1718864092147,7.2998,136.99,136.89,20.0]
[1718864092349,7.3004,136.98,136.89,20.0]
[1718864092558,0.51,136.97,136.89,20.0]
[1718864093259,0.51,136.97,136.9,1.45562027]
[1718864093755,0.34,136.97,136.9,1.45562027]
[1718864095161,21.5266,137.08,136.91,22.5413]
[1718864095477,7.2977,137.03,136.92,20.0]
[1718864095663,7.2972,137.04,136.92,20.0]
[1718864095858,18.2405,137.06,136.92,20.0]
[1718864096045,18.2426,137.05,136.92,20.0]
[1718864096363,18.2439,137.04,136.92,20.0]
[1718864097042,0.68,137.03,136.92,20.0]
[1718864097652,0.17,137.01,136.92,20.0]
[1718864097850,0.68,137.03,136.92,20.0]
[1718864098151,0.68,137.03,136.93,15.4712]
[1718864098741,0.17,136.99,136.93,15.4712]
[1718864098953,7.3006,136.98,136.93,15.4712]
[1718864099147,7.3018,136.96,136.93,15.4712]
[1718864099353,0.17,136.95,136.91,6.4355]
[1718864099542,0.51,136.95,136.91,6.4355]
[1718864100468,0.51,136.95,136.9,16.4745]
[1718864100670,7.473,136.93,136.9,16.4745]
[1718864100961,0.34,136.94,136.9,16.4745]
[1718864101266,0.34,136.94,136.86,15.5584]
[1718864101267,0.17,136.9,136.86,15.5584]
[1718864101559,0.34,136.9,136.86,15.5584]
[1718864101867,7.3042,136.91,136.86,15.5584]
[1718864102043,0.17,136.9,136.86,15.5584]
[1718864102359,7.6436,136.92,136.86,15.5584]
[1718864102571,0.17,136.9,136.86,15.5584]
[1718864102942,0.34,136.91,136.86,15.5584]
[1718864103140,39.17035057,137.09,136.86,15.5584]
[1718864103141,7.3001,136.99,136.86,15.5584]
[1718864103370,7.3005,136.98,136.86,15.5584]
[1718864103565,28.49102608,137.01,136.86,15.5584]
[1718864103739,18.2513,136.98,136.86,15.5584]
[1718864103938,46.73892608,137.01,136.86,15.5584]
[1718864104166,7.3025,136.94,136.86,15.5584]
[1718864104337,64.98522608,137.01,136.86,15.5584]
[1718864104539,0.17,136.9,136.86,15.5584]
[1718864104755,0.34,136.9,136.86,15.5584]
[1718864105960,7.3024,136.95,136.86,15.5584]
[1718864106262,0.51,136.94,136.86,15.5584]
[1718864106458,0.17,136.93,136.86,15.5584]
[1718864106864,0.34,136.93,136.86,15.5584]
[1718864107056,0.17,136.92,136.86,15.5584]
[1718864107273,7.4751,136.89,136.86,15.5584]
[1718864107867,7.3057,136.88,136.84,6.463]
[1718864108069,0.17,136.86,136.82,15.285]
[1718864108384,0.34,136.86,136.82,15.285]
[1718864108573,0.17,136.85,136.82,15.285]
[1718864108752,0.34,136.85,136.82,15.285]
[1718864111080,0.17,136.84,136.8,6.1977]
[1718864111258,0.51,136.84,136.8,6.1977]
[1718864111456,0.17,136.83,136.8,6.1977]
[1718864111657,0.34,136.83,136.78,16.5321]
[1718864112668,0.17,136.82,136.78,16.5321]
[1718864112984,0.34,136.82,136.78,16.5321]
[1718864113550,0.17,136.81,136.78,16.5321]
[1718864113766,0.51,136.81,136.78,16.5321]
[1718864114070,7.48,136.8,136.7,6.0118]
[1718864114254,0.34,136.79,136.71,20.0]
[1718864114455,0.17,136.78,136.71,20.0]
[1718864114774,0.17,136.78,136.69,16.2125]
[1718864114775,0.17,136.77,136.69,16.2125]
[1718864114960,0.34,136.77,136.69,16.2125]
[1718864115160,0.17,136.78,136.69,16.2125]
[1718864115358,0.17,136.77,136.69,16.2125]
[1718864115561,0.17,136.76,136.69,16.2125]
[1718864115760,0.34,136.76,136.69,16.2125]
[1718864116180,0.17,136.74,136.66,6.1771]
[1718864116370,18.6241,136.74,136.66,6.1771]
[1718864116593,0.17,136.71,136.66,6.1771]
[1718864116884,0.68,136.71,136.66,6.1771]
[1718864117077,0.17,136.72,136.66,6.1771]
[1718864117463,0.34,136.72,136.66,6.1771]
[1718864117681,0.17,136.71,136.64,15.4743]
[1718864117857,0.17,136.7,136.64,15.4743]
[1718864118062,7.8254,136.7,136.64,15.4743]
[1718864118259,0.17,136.69,136.64,15.4743]
[1718864118564,0.17,136.68,136.64,15.4743]
[1718864118862,7.8268,136.68,136.55,22.5367]
[1718864119057,0.17,136.66,136.55,22.5367]
[1718864119256,0.17,136.65,136.55,22.5367]
[1718864119459,0.51,136.65,136.55,22.5367]
[1718864120082,7.316,136.69,136.55,22.5367]
[1718864120277,0.34,136.68,136.56,2.08105903]
[1718864120471,7.3145,136.72,136.57,6.3202]
[1718864120676,7.3132,136.74,136.59,6.3202]
[1718864120873,6.2079,136.75,136.6,20.0]
[1718864121170,7.3137,136.73,136.6,20.0]
[1718864122282,7.3147,136.71,136.6,20.0]
[1718864122585,0.17,136.74,136.6,20.0]
[1718864122882,7.3168,136.68,136.59,6.3202]
[1718864123089,0.17,136.66,136.59,6.3202]
[1718864123457,0.34,136.66,136.59,6.3202]
[1718864123659,0.17,136.64,136.59,6.3202]
[1718864123891,0.34,136.64,136.59,6.3202]
[1718864124456,0.17,136.63,136.59,6.3202]
[1718864124668,0.17,136.64,136.59,6.3202]
[1718864124989,7.317,136.67,136.59,6.3202]
[1718864124990,0.17,136.67,136.59,6.3202]
[1718864125286,25.17,136.74,136.59,6.3202]
[1718864125525,7.3147,136.71,136.59,6.3202]
[1718864125680,27.3154,136.7,136.59,6.3202]
[1718864126007,30.0,136.63,136.59,6.3202]
[1718864130488,7.3177,136.66,136.59,6.3202]
[1718864130790,0.17,136.65,136.59,6.3202]
[1718864131097,0.68,136.65,136.59,6.3202]
[1718864131278,0.17,136.63,136.58,15.5054]
[1718864131583,0.68,136.63,136.58,15.5054]
[1718864132695,7.3205,136.61,136.55,6.314]
[1718864132874,0.51,136.6,136.55,6.314]
[1718864133072,0.34,136.59,136.55,6.314]
[1718864133271,0.17,136.58,136.54,16.4414]
[1718864134366,0.34,136.58,136.54,16.4414]
[1718864134585,0.34,136.57,136.53,6.0504]
[1718864134774,0.17,136.56,136.51,16.6361]
[1718864134974,0.34,136.56,136.51,16.6361]
[1718864135295,0.17,136.57,136.51,16.6361]
[1718864135589,0.51,136.57,136.51,16.6361]
[1718864135970,0.34,136.57,136.51,16.6361]
[1718864136168,16.3115,136.57,136.46,253.6]
[1718864136405,20.34,136.56,136.43,22.2284]
[1718864136608,0.17,136.55,136.43,22.2284]
[1718864137093,0.17,136.53,136.43,22.2284]
[1718864137262,0.17,136.54,136.44,0.6544486]
[1718864137467,0.34,136.55,136.44,0.6544486]
[1718864138302,6.3962,136.64,136.46,53.9107]
[1718864138470,6.3962,136.64,136.49,25.17]
[1718864138669,27.319,136.63,136.5,20.51]
[1718864139189,7.3197,136.62,136.5,20.17]
[1718864139391,13.715,136.64,136.52,30.0]
[1718864139684,13.715,136.64,136.53,20.0]
[1718864140380,20.0,136.63,136.54,6.0638]
[1718864140561,20.0,136.63,136.54,21.268]
[1718864141279,22.6969,136.65,136.54,21.268]
[1718864141280,7.318,136.65,136.54,21.268]
[1718864141487,6.1598,136.68,136.55,20.17]
[1718864142288,6.1598,136.68,136.56,0.17]
[1718864142489,6.1598,136.68,136.56,0.51]
[1718864142799,6.1598,136.68,136.57,0.17]
[1718864143282,7.64320369,136.72,136.57,0.17]
[1718864143283,13.80650369,136.72,136.57,0.17]
[1718864143487,7.3157,136.7,136.58,0.17]
[1718864143695,6.1633,136.72,136.58,0.17]
[1718864143901,20.0,136.71,136.58,0.17]
[1718864144192,6.1633,136.72,136.58,20.51]
[1718864144398,6.1633,136.72,136.59,0.17]
[1718864144774,7.3158,136.69,136.59,0.17]
[1718864144978,6.1633,136.72,136.59,0.17]
[1718864145184,0.17,136.71,136.59,0.17]
[1718864145377,0.51,136.71,136.59,0.17]
[1718864145593,0.17,136.69,136.59,0.17]
[1718864145794,0.51,136.69,136.58,20.0]
[1718864145991,0.17,136.67,136.58,20.0]
[1718864146200,0.17,136.65,136.55,20.0]
[1718864146400,0.68,136.65,136.56,30.0]
[1718864146579,0.17,136.64,136.57,20.0]
[1718864146900,0.51,136.64,136.55,20.0]
[1718864147191,20.0,136.68,136.55,20.0]
[1718864147396,0.34,136.67,136.55,20.0]
[1718864147591,0.17,136.66,136.56,0.17]
[1718864148021,0.17,136.66,136.55,20.0]
[1718864148374,0.17,136.65,136.55,20.0]
[1718864148572,0.34,136.65,136.55,20.0]
[1718864148899,0.34,136.64,136.55,20.0]
[1718864149081,0.17,136.63,136.55,20.0]
[1718864149874,0.17,136.64,136.55,20.0]
[1718864150078,7.3147,136.71,136.56,0.34]
[1718864150278,6.1633,136.72,136.56,0.34]
[1718864150710,7.3169,136.67,136.57,0.34]
[1718864150997,6.1633,136.72,136.57,0.17]
[1718864151205,7.3153,136.7,136.58,0.34]
[1718864151419,7.319,136.63,136.55,20.0]
[1718864151582,6.1633,136.72,136.54,21.268]
[1718864151781,20.0,136.71,136.54,21.268]
[1718864151999,20.0,136.71,136.54,43.258]
[1718864152207,6.1633,136.72,136.54,21.268]
[1718864152504,13.4776,136.72,136.57,25.17]
[1718864152804,13.4776,136.72,136.58,0.17]
[1718864153011,6.1633,136.72,136.58,0.68]
[1718864153302,6.1633,136.72,136.59,22.924]
[1718864153506,7.3148,136.71,136.61,0.17]
[1718864153680,7.3148,136.71,136.6,20.51]
[1718864153885,7.3148,136.71,136.6,20.17]
[1718864154099,7.3163,136.68,136.6,20.0]
[1718864154616,18.2888,136.7,136.6,20.0]
[1718864154781,0.51,136.69,136.6,20.0]
[1718864155110,0.17,136.65,136.6,20.0]
[1718864155295,0.51,136.65,136.59,22.924]
[1718864155906,7.828,136.65,136.53,22.8348]
[1718864156203,0.17,136.64,136.53,22.8348]
[1718864156477,0.17,136.62,136.53,22.8348]
[1718864156576,0.51,136.62,136.53,22.8348]
[1718864157710,0.17,136.61,136.53,22.8348]
[1718864157888,0.17,136.6,136.53,22.8348]
[1718864158093,0.51,136.6,136.53,22.8348]
[1718864158318,0.34,136.6,136.53,22.8348]
[1718864158490,0.17,136.62,136.54,20.0]
[1718864158806,0.68,136.63,136.54,20.0]
[1718864160080,0.17,136.61,136.54,20.0]
[1718864160284,0.68,136.61,136.54,20.0]
[1718864160598,0.17,136.59,136.54,20.0]
[1718864160802,0.17,136.59,136.49,275.9807]
[1718864161007,0.34,136.59,136.5,20.0]
[1718864161183,0.17,136.58,136.5,20.0]
[1718864161511,0.34,136.58,136.5,20.0]
[1718864161706,0.17,136.57,136.49,275.9807]
[1718864162017,0.34,136.57,136.49,275.9807]
[1718864162177,0.34,136.56,136.49,275.9807]
[1718864162385,0.34,136.57,136.49,275.9807]
[1718864162591,0.17,136.57,136.49,275.9807]
[1718864163091,0.17,136.56,136.49,275.9807]
[1718864163315,14.3159,136.56,136.46,22.748]
[1718864163489,7.4942,136.54,136.46,16.2679]
[1718864163813,0.17,136.54,136.46,16.2679]
[1718864163984,0.34,136.54,136.46,16.2679]
[1718864164186,26.0095,136.61,136.46,16.2679]
[1718864164794,6.0095,136.61,136.46,16.2679]
[1718864164994,18.3042,136.59,136.46,16.2679]
[1718864165205,7.3236,136.55,136.46,16.2679]
[1718864165522,7.3234,136.55,136.47,20.98766489]
[1718864165693,0.68,136.54,136.47,20.98766489]
[1718864166288,0.68,136.54,136.47,0.98766489]
[1718864166895,6.0092,136.53,136.47,0.98766489]
[1718864167099,0.17,136.5,136.41,20.0]
[1718864167397,0.17,136.5,136.36,382.4]
[1718864167398,0.17,136.48,136.36,382.4]
[1718864167615,7.8374,136.48,136.37,20.0]
[1718864167824,0.51,136.48,136.36,389.7257]
[1718864168120,0.51,136.48,136.36,382.4]
[1718864168422,0.51,136.48,136.36,385.336821]
[1718864168627,0.17,136.47,136.36,2.936821]
[1718864168795,0.17,136.46,136.34,276.6197]
[1718864168993,0.51,136.46,136.34,23.0197]
[1718864169209,0.17,136.45,136.34,23.0197]
[1718864169417,0.34,136.45,136.34,23.0197]
[1718864169608,20.0,136.52,136.34,45.0097]
[1718864169820,7.3255,136.51,136.34,45.0097]
[1718864169995,7.3255,136.51,136.36,21.99]
[1718864170223,27.3251,136.52,136.37,20.0]
[1718864170407,6.0092,136.53,136.38,21.99]
[1718864170632,15.7667,136.56,136.4,69.1098]
[1718864170832,6.5687,136.58,136.42,0.17]
[1718864171007,7.3238,136.54,136.42,0.51]
[1718864171221,7.3229,136.56,136.43,0.17]
[1718864171517,7.3229,136.56,136.44,0.17]
[1718864171518,7.3231,136.56,136.44,0.17]
[1718864171942,7.3242,136.54,136.43,0.34]
[1718864172135,7.3242,136.54,136.42,0.51]
[1718864172422,0.17,136.53,136.43,0.34]
[1718864172623,6.5687,136.58,136.44,0.17]
[1718864172817,6.5687,136.58,136.44,0.34]
[1718864173000,6.5687,136.58,136.42,0.17]
[1718864173200,24.8741,136.58,136.42,0.68]
[1718864173397,7.65245066,136.61,136.46,0.17]
[1718864173628,7.3199,136.62,136.46,22.14325242]
[1718864173800,7.3199,136.62,136.46,20.68]
[1718864173801,7.3217,136.58,136.46,20.68]
[1718864174001,7.3213,136.59,136.46,20.68]
[1718864174223,7.322,136.58,136.46,20.0]
[1718864174726,7.3209,136.6,136.47,0.17]
[1718864175024,0.17,136.57,136.47,0.34]
[1718864175227,7.4917,136.58,136.47,0.17]
[1718864175541,7.4917,136.58,136.46,20.17]
[1718864175542,0.17,136.54,136.46,20.0]
[1718864175827,0.68,136.54,136.46,20.0]
[1718864176230,15.9542,136.59,136.47,0.17]
[1718864176730,7.3219,136.58,136.46,20.0]
[1718864176919,23.2755,136.59,136.47,0.17]
[1718864177240,23.2754,136.59,136.46,20.0]
[1718864177419,23.2755,136.59,136.46,20.0]
[1718864177610,7.3221,136.58,136.46,20.0]
[1718864177808,0.68,136.57,136.46,20.0]
[1718864178011,0.68,136.57,136.47,0.17]
[1718864178622,48.9502,136.63,136.47,0.51]
[1718864178837,7.3196,136.62,136.48,0.34]
[1718864179124,7.3201,136.61,136.49,0.51]
[1718864179306,7.3201,136.61,136.49,0.34]
[1718864179515,7.3196,136.62,136.5,0.17]
[1718864179707,23.7802,136.63,136.5,1.63259492]
[1718864179932,16.461,136.63,136.52,16.5825]
[1718864180136,7.3205,136.61,136.53,20.0]
[1718864180436,16.461,136.63,136.46,16.4214]
[1718864180649,7.3227,136.57,136.47,20.0]
[1718864180842,7.3227,136.57,136.46,16.2514]
[1718864181130,0.17,136.55,136.46,16.2514]
[1718864181332,0.34,136.55,136.46,16.2514]
[1718864181531,0.17,136.54,136.46,16.2514]
[1718864182416,0.17,136.54,136.47,20.0]
[1718864183324,2.935363,136.6,136.48,0.17]
[1718864183529,0.17,136.59,136.48,0.68]
[1718864183732,0.17,136.59,136.48,2.16532704]
[1718864183940,0.17,136.6,136.47,20.0]
[1718864184145,7.321,136.6,136.47,20.0]
[1718864184323,7.4912,136.59,136.48,0.17]
[1718864184524,0.17,136.58,136.47,20.0]
[1718864184831,0.68,136.58,136.47,20.0]
[1718864186122,7.3231,136.56,136.47,20.0]
[1718864186322,0.17,136.54,136.46,16.2514]
[1718864186521,7.4939,136.54,136.46,16.2514]
[1718864186720,0.17,136.52,136.46,16.2514]
[1718864186923,0.34,136.52,136.46,16.2514]
[1718864187119,0.34,136.51,136.46,16.2514]
[1718864187316,0.34,136.5,136.46,16.2514]
[1718864187627,0.34,136.51,136.46,16.2514]
[1718864187628,0.17,136.51,136.46,16.2514]
[1718864187821,0.68,136.52,136.46,16.2514]
[1718864189819,8.0049,136.52,136.46,16.2514]
[1718864190220,0.17,136.5,136.43,16.5359]
[1718864190439,8.006,136.5,136.43,16.5359]
[1718864190741,0.17,136.48,136.43,16.5359]
[1718864190948,0.17,136.46,136.41,6.2176]
[1718864191190,0.17,136.46,136.39,16.5359]
[1718864191191,0.68,136.46,136.39,16.5359]
[1718864191942,0.17,136.44,136.39,16.5359]
[1718864192119,0.17,136.44,136.37,6.2176]
[1718864193147,35.1201,136.49,136.37,6.2176]
[1718864193722,7.327,136.48,136.37,6.2176]
[1718864193946,7.3276,136.47,136.37,6.2176]
[1718864194244,0.17,136.44,136.37,6.2176]
[1718864194424,0.34,136.43,136.37,6.2176]
[1718864194623,35.1201,136.49,136.37,6.2176]
[1718864194828,7.3273,136.48,136.37,6.2176]
[1718864195028,20.0,136.47,136.37,6.2176]
[1718864195744,15.1201,136.49,136.37,6.2176]
[1718864195931,15.1201,136.49,136.38,20.17]
[1718864196133,20.0,136.48,136.38,20.0]
[1718864196655,27.3271,136.48,136.38,20.0]
[1718864197039,0.51,136.47,136.38,20.0]
[1718864197342,0.17,136.46,136.38,20.0]
[1718864202237,7.4993,136.44,136.37,6.2176]
[1718864202543,0.34,136.43,136.37,6.2176]
[1718864204761,21.1562221,136.54,136.37,6.2176]
[1718864204941,7.6675,136.48,136.37,6.2176]
[1718864205239,0.17,136.46,136.37,6.2176]
[1718864205441,0.34,136.46,136.37,6.2176]
[1718864205648,0.17,136.45,136.37,6.2176]
[1718864205820,7.65973177,136.49,136.39,15.3132]
[1718864206021,7.3255,136.51,136.4,20.0]
[1718864206248,7.325,136.52,136.4,20.0]
[1718864206419,20.0,136.51,136.4,20.0]
[1718864206821,20.0,136.52,136.4,20.0]
[1718864207049,7.3257,136.51,136.4,20.0]
[1718864207226,20.0,136.52,136.41,6.474]
[1718864207428,18.3137,136.51,136.41,6.474]
[1718864207639,7.3273,136.48,136.41,6.474]
[1718864208090,7.3276,136.47,136.41,6.474]
[1718864208345,0.17,136.46,136.41,6.474]
[1718864208525,8.0084,136.46,136.39,15.3132]
[1718864208728,8.0082,136.46,136.39,15.3132]
[1718864210441,0.17,136.44,136.39,15.3132]
[1718864210652,0.17,136.44,136.37,6.474]
[1718864211027,7.4995,136.44,136.37,6.474]
[1718864211227,7.5003,136.42,136.36,16.156]
[1718864211454,0.17,136.4,136.36,16.156]
[1718864212154,0.17,136.4,136.33,6.3887]
[1718864214351,7.3331,136.37,136.31,16.5008]
[1718864214530,0.51,136.36,136.31,16.5008]
[1718864214734,0.34,136.36,136.31,16.5008]
[1718864215149,0.34,136.36,136.29,6.0312]
[1718864215446,0.17,136.35,136.29,6.0312]
[1718864215622,0.17,136.35,136.32,7.3355]
[1718864215623,0.17,136.34,136.32,7.3355]
[1718864215823,0.34,136.34,136.32,7.3355]
[1718864216052,0.34,136.34,136.27,7.3381]
[1718864216053,0.17,136.31,136.27,7.3381]
[1718864216247,0.17,136.33,136.3,7.3363]
[1718864216547,22.7542,136.42,136.23,6.4452]
[1718864216753,29.403148,136.43,136.38,7.3321]
[1718864216924,20.0,136.42,136.38,7.3321]
[1718864217126,27.33,136.43,136.38,7.3321]
[1718864217444,27.33,136.43,136.37,7.3328]
[1718864217745,20.0,136.43,136.36,7.3333]
[1718864217946,7.3308,136.41,136.36,7.3333]
[1718864218123,7.3322,136.39,136.32,6.4452]
[1718864218330,7.3326,136.38,136.32,6.4452]
[1718864219229,0.17,136.38,136.33,7.3347]
[1718864219444,8.0126,136.38,136.32,7.3351]
[1718864219637,0.68,136.38,136.31,15.9753]
[1718864219836,20.68,136.38,136.34,7.3345]
[1718864220037,28.0125,136.38,136.33,7.3351]
[1718864220735,20.68,136.38,136.29,6.1985]
[1718864221078,7.5038,136.36,136.31,7.336]
[1718864221257,0.17,136.34,136.31,7.336]
[1718864222064,0.17,136.34,136.32,7.3355]
[1718864222680,20.0,136.39,136.36,7.3331]
[1718864222860,20.0,136.4,136.36,7.3331]
[1718864223356,20.0,136.4,136.37,7.3328]
[1718864223533,20.0,136.41,136.37,7.3328]
[1718864223735,27.3309,136.41,136.36,7.3334]
[1718864224043,39.39145566,136.46,136.29,0.17]
[1718864224248,20.0,136.43,136.29,20.68]
[1718864224638,7.3314,136.4,136.29,20.17]
[1718864224836,7.332,136.39,136.29,20.0]
[1718864225032,81.51973744,136.43,136.29,20.0]
[1718864225362,7.3312,136.41,136.29,20.0]
[1718864225532,28.0115,136.4,136.29,20.0]
[1718864225730,27.8415,136.4,136.29,20.0]
[1718864225960,0.17,136.32,136.27,16.3513]
[1718864226139,0.51,136.33,136.27,16.3513]
[1718864226341,0.34,136.33,136.27,16.3513]
[1718864226740,7.334,136.35,136.27,16.3513]
[1718864226741,0.17,136.35,136.27,16.3513]
[1718864226936,20.51,136.35,136.27,16.3513]
[1718864227171,0.51,136.35,136.27,16.3513]
[1718864227341,0.51,136.35,136.32,7.3354]
[1718864228347,0.51,136.35,136.33,7.3348]
[1718864228549,0.51,136.35,136.32,7.3355]
[1718864228755,0.51,136.35,136.27,16.3513]
[1718864228965,0.17,136.34,136.27,16.3513]
[1718864229266,0.34,136.34,136.27,16.3513]
[1718864229467,0.17,136.33,136.31,7.336]
[1718864229655,0.34,136.33,136.31,7.336]
[1718864229840,0.17,136.33,136.27,16.3513]
[1718864230164,0.51,136.33,136.27,16.3513]
[1718864230358,0.17,136.32,136.25,6.4296]
[1718864230554,0.34,136.32,136.25,6.4296]
[1718864230745,0.34,136.32,136.3,7.3364]
[1718864230944,0.17,136.34,136.32,7.3354]
[1718864231162,0.17,136.35,136.33,7.335]
[1718864231545,0.34,136.36,136.33,7.335]
[1718864232053,0.34,136.36,136.32,7.3355]
[1718864232258,27.333,136.37,136.32,7.3355]
[1718864232558,7.3321,136.39,136.3,15.9952]
[1718864232760,6.3149,136.41,136.3,15.9952]
[1718864232942,20.0,136.4,136.34,7.3341]
[1718864233142,27.67059119,136.4,136.3,15.9952]
[1718864233343,27.67059119,136.4,136.36,7.3332]
[1718864233536,20.0,136.4,136.36,7.3332]
[1718864233780,27.3314,136.4,136.35,7.3338]
[1718864234151,7.3328,136.38,136.3,15.9952]
[1718864234475,0.17,136.35,136.3,15.9952]
[1718864234763,0.51,136.35,136.3,15.9952]
[1718864235069,0.17,136.35,136.33,7.3351]
[1718864235359,0.51,136.36,136.32,7.3355]
[1718864235564,0.17,136.35,136.3,15.9952]
[1718864235872,7.3318,136.4,136.35,7.3338]
[1718864236040,20.0,136.39,136.3,15.9952]
[1718864236240,20.0,136.39,136.37,7.3328]
[1718864236551,13.6458,136.41,136.36,7.3332]
[1718864236751,13.6458,136.41,136.36,7.3333]
[1718864236942,7.6692881,136.44,136.32,0.17]
[1718864237266,7.3295,136.44,136.32,20.68]
[1718864237572,21.434,136.47,136.32,20.68]
[1718864237949,7.3301,136.43,136.32,20.34]
[1718864238346,7.3294,136.44,136.32,20.34]
[1718864238957,7.3289,136.45,136.32,20.34]
[1718864239137,27.3294,136.44,136.32,20.34]
[1718864239344,20.0,136.44,136.32,20.17]
[1718864239545,20.0,136.44,136.32,20.0]
[1718864239757,7.33,136.43,136.32,20.0]
[1718864239959,0.17,136.41,136.32,20.0]
[1718864240166,0.34,136.41,136.32,20.0]
[1718864240352,0.17,136.4,136.32,20.0]
[1718864241270,0.17,136.42,136.33,15.6648]
[1718864241572,0.68,136.43,136.34,20.0]
[1718864242278,0.17,136.43,136.34,20.0]
[1718864242660,7.4993,136.44,136.34,20.0]
[1718864243053,0.17,136.44,136.34,20.0]
[1718864243452,0.17,136.43,136.34,20.0]
[1718864243659,7.6701,136.43,136.34,20.0]
[1718864243858,0.17,136.41,136.33,15.6648]
[1718864244199,0.34,136.41,136.33,15.6648]
[1718864244351,0.34,136.4,136.33,15.6648]
[1718864244760,45.0,136.44,136.33,15.6648]
[1718864244761,6.2721,136.47,136.34,6.1127]
[1718864244948,20.0,136.46,136.35,20.0]
[1718864245143,27.3278,136.47,136.35,20.0]
[1718864245348,20.0,136.47,136.35,20.0]
[1718864245601,7.3287,136.45,136.35,20.0]
[1718864245887,38.3191,136.47,136.35,20.0]
[1718864246164,20.0,136.47,136.34,6.1127]
[1718864246368,0.17,136.43,136.34,6.1127]
[1718864246562,0.68,136.43,136.34,6.1127]
[1718864248164,20.0,136.45,136.34,6.1127]
[1718864248353,20.0,136.45,136.35,20.17]
[1718864249169,7.3296,136.44,136.35,20.0]